Cogmind - Beta 16 @@@ ROGUE MODE // 2025.10.30 @ 21:37:21 Player: Finestep Result: Destroyed by S-27 Virus with Autogun Performance ------------- Evolutions (4) 2000 Regions Visited (19) 3800 Robots Destroyed (349) 1745 Value Destroyed (15476) 15476 Prototype IDs (23) 460 Alien Tech Used (0) 0 Bonus (5312) 5312 TOTAL SCORE: 28793 Bonus ------- High Alert Combat Kills 3221 Follower Combat Kills 1141 Entered Garrisons 800 Met Data Miner 300 Acquired ECA 300 Friendly Fire -450 Cogmind --------- Core Integrity 0/850 Matter 83/300 Energy 13/100 System Corruption 5% Temperature Cool (0) Movement Rolling (125) Ox3 Location -6/Extension Parts ------- > --- POWER (1) -------- (None) > --- PROPULSION (5) --- Medium Treads Improved Medium Treads Wheel Wheel Wheel > --- UTILITY (7) ------ Huge Storage Unit Target Analyzer Improved Light Armor Plating Layered Medium Armor Plating Medium Reflective Plating > --- WEAPON (2) ------- Enhanced Autogun Hypervelocity Gauss Rifle > --- INVENTORY (25) --- Advanced Heat Sink Coolant Injector Compact Battery (200) Compact Matter Pod (150) Matter Compressor (113) Transport Network Coupler Encrypted Comm Array High-powered Tractor Beam Phase Cannon Phase Cannon Enhanced Autogun Enhanced Autogun Hypervelocity Gauss Rifle Hypervelocity Gauss Rifle Heavy Flak Cannon Heavy Flak Cannon Heavy Flak Cannon Heavy Rocket Launcher Advanced Micro-nuke Launcher Heavy Pick Peak State ------------ > --- POWER ------------ Light Antimatter Reactor > --- PROPULSION ------- Armored Treads Improved Heavy Treads Improved Heavy Treads > --- UTILITY ---------- Advanced Heat Sink High-capacity Storage Unit Active Sensor Suite Target Analyzer Weapon Cycler > --- WEAPON ----------- Hypervelocity Gauss Rifle Hypervelocity Gauss Rifle > --- INVENTORY -------- Fusion Compressor Improved Heavy Treads Coolant Injector Matter Compressor Transport Network Coupler Encrypted Comm Array Precision Shock Rifle Phase Cannon Enhanced Autogun Enhanced Autogun Enhanced Autogun Hypervelocity Gauss Rifle Hypervelocity Gauss Rifle Hypervelocity Gauss Rifle Heavy Rocket Launcher Heavy Rocket Launcher Advanced Micro-nuke Launcher Spear Heavy Pick [Rating: 97] Favorites ----------- Power Angular Momentum Engine Engine Angular Momentum Engine Power Core Micro Fission Core Reactor Light Antimatter Reactor Propulsion Light Treads Treads Light Treads Leg Carbon-fiber Leg Wheel Armored Huge Wheel Utility Large Storage Unit Device Advanced Heat Sink Storage Large Storage Unit Processor Advanced Targeting Computer Hackware Hacking Suite Protection Hardened Heavy Armor Plating Weapon Hypervelocity Gauss Rifle Energy Gun Heavy Beamcaster Energy Cannon Ion Cannon Ballistic Gun Hypervelocity Gauss Rifle Ballistic Cannon Advanced Assault Cannon Launcher Heavy Rocket Launcher Special Weapon Mining Laser Piercing Weapon Spear Build | -11 -10 -10 -8 -8 -8 -8 -7 -7 -7 -7 -7 -7 -6 -6 -6 -6 -6 -6 -6 ------- Run | Yrd Mat Sub Mat Gar Mat Gar Fac Gar Fac Low Low Dat Pro Fac Was Fac Gar Fac Ext Slots Evolved 8 | . . . 4 . . . 2 . . . . . . 2 . . . . . Power . | . . . . . . . . . . . . . . . . . . . . Propulsion 3 | . . . 2 . . . . . . . . . . 1 . . . . . Utility 5 | . . . 2 . . . 2 . . . . . . 1 . . . . . Weapon . | . . . . . . . . . . . . . . . . . . . . Parts Attached 255 | 7 8 7 35 27 4 2 9 26 8 5 11 . 9 4 12 20 26 14 21 Power 22 | 1 1 1 2 2 1 1 1 1 1 . . . 1 1 1 3 3 . 1 Engine 10 | 1 1 1 1 1 1 . 1 . 1 . . . . 1 . 1 . . . Core 8 | . . . 1 1 . 1 . 1 . . . . . . . 2 1 . 1 Reactor 4 | . . . . . . . . . . . . . 1 . 1 . 2 . . Propulsion 89 | 2 2 2 16 15 1 . . 11 2 . 5 . 3 1 . 6 13 4 6 Treads 53 | . 2 1 14 14 1 . . 8 2 . 1 . . . . . 3 4 3 Leg 30 | 2 . . 2 . . . . 2 . . 4 . 3 1 . 6 10 . . Wheel 6 | . . 1 . 1 . . . 1 . . . . . . . . . . 3 Hover . | . . . . . . . . . . . . . . . . . . . . Flight . | . . . . . . . . . . . . . . . . . . . . Utility 81 | 2 2 . 9 5 2 . 7 7 5 2 4 . 2 1 4 5 5 9 10 Device 37 | 1 . . 3 2 . . 4 3 3 . 3 . 1 . 3 3 3 4 4 Storage 8 | 1 2 . 1 . . . . . . . . . . 1 . . . 2 1 Processor 12 | . . . 1 . 1 . 1 1 2 1 . . . . 1 1 . 3 . Hackware 2 | . . . . . . . 1 . . . . . . . . 1 . . . Protection 22 | . . . 4 3 1 . 1 3 . 1 1 . 1 . . . 2 . 5 Artifact . | . . . . . . . . . . . . . . . . . . . . Weapon 63 | 2 3 4 8 5 . 1 1 7 . 3 2 . 3 1 7 6 5 1 4 Energy Gun 18 | 1 . . 3 1 . . . 3 . 1 2 . 1 . 2 3 . 1 . Energy Cannon 6 | . . 1 1 1 . . 1 1 . . . . . . . 1 . . . Ballistic Gun 23 | 1 3 . 2 . . . . 2 . 1 . . 1 1 3 2 4 . 3 Ballistic Cannon 7 | . . 2 . 2 . . . 1 . . . . 1 . . . 1 . . Launcher 6 | . . . 2 . . 1 . . . 1 . . . . 2 . . . . Special Weapon 2 | . . 1 . . . . . . . . . . . . . . . . 1 Impact Weapon . | . . . . . . . . . . . . . . . . . . . . Slashing Weapon . | . . . . . . . . . . . . . . . . . . . . Piercing Weapon 1 | . . . . 1 . . . . . . . . . . . . . . . Special Melee Weapon . | . . . . . . . . . . . . . . . . . . . . Unidentified Prototypes 8 | . . . 3 . . . . . . . . . . . 1 3 . 1 . Corrupted Parts 4 | . . . 1 . . . . 1 . . . . 1 . . 1 . . . System Corruption 11 | . . . 2 . . . . 3 . . . . 5 . . 1 . . . Parts Lost 67 | . 2 3 6 6 . 2 2 10 . . . . 5 . . 6 9 4 12 Power 8 | . 1 1 1 . . 1 . . . . . . 1 . . . 1 . 2 Propulsion 26 | . 1 2 1 3 . 1 . 5 . . . . 2 . . 3 2 2 4 Utility 22 | . . . 2 1 . . 2 3 . . . . 1 . . 3 5 2 3 Weapon 11 | . . . 2 2 . . . 2 . . . . 1 . . . 1 . 3 Highest Loss Streak 6 | . 2 2 2 3 . 1 1 3 . . . . 2 . . 3 2 2 6 To Critical Strikes 1 | . . . . . . . . . . . . . 1 . . . . . . Average Backups 14 | 3 8 13 13 12 13 12 13 13 14 13 14 14 13 13 16 19 19 19 20 Power . | . . . . 1 1 . . 1 1 1 1 1 . . 1 1 1 1 . Propulsion 1 | 1 1 2 . 3 1 . . 1 . . . . 2 1 1 . 2 . . Utility 4 | . . 3 4 3 4 5 6 5 7 5 5 5 3 3 3 4 1 3 5 Weapon 7 | . 6 7 5 4 6 6 6 5 5 7 6 7 6 7 9 11 13 13 12 Tool/Special . | . . . . . . . . . . . . . . . . . . . . Unused Backups 47 | . . 3 8 4 1 . 3 4 2 . . . 1 3 1 6 1 . 10 Power 5 | . . . 1 . . . . . 2 . . . . . . 1 1 . . Propulsion 4 | . . 1 2 . . . . 1 . . . . . . . . . . . Utility 15 | . . . 3 1 . . 3 1 . . . . 1 1 . 1 . . 4 Weapon 22 | . . 2 2 2 1 . . 2 . . . . . 2 1 4 . . 6 Tool/Special 1 | . . . . 1 . . . . . . . . . . . . . . . Average Slot Usage (%) 92 | . 99 98 91 89 88 86 83 95 99 100 100 92 99 94 98 96 92 75 71 Engine 4 | . 13 13 7 8 8 7 . . 5 7 7 7 . 1 1 1 . . . Core 1 | . . . 1 . . 1 7 7 1 . . . . . . . . . 1 Reactor 1 | . . . . . . . . . . . . . 6 4 4 3 5 6 4 Treads 19 | . 21 16 32 35 23 20 15 24 30 30 16 . . . . . 1 19 19 Leg 8 | . 6 . 1 . . . . 3 . . 13 30 30 27 33 32 30 . . Wheel 1 | . . 10 . . 6 4 7 . . . . . . . . . . . . Device 15 | . 14 14 10 8 9 9 15 13 17 23 23 23 22 26 23 15 18 15 13 Storage 7 | . 14 14 9 9 9 9 7 7 7 7 7 7 7 6 6 6 6 6 6 Processor 4 | . . . 1 . 4 6 5 5 7 7 7 7 7 6 7 15 2 2 6 Hackware 1 | . . . . . . . . 7 4 . . . . . . 2 6 3 . Protection 6 | . . . 8 9 9 9 7 8 6 7 7 7 7 6 6 3 5 6 6 Energy Gun 3 | . 9 . 3 6 . . . . 1 3 2 . 3 6 4 10 3 . . Energy Cannon 3 | . . 10 4 5 9 9 7 4 5 4 3 . 3 . . . 1 . . Ballistic Gun 5 | . 18 4 6 . . . . 5 . . 4 . 5 2 5 1 5 11 12 Ballistic Cannon 3 | . . 11 2 4 9 8 7 3 7 4 2 . 1 3 . . . . . Peak Build Rating 97 | 7 8 9 31 39 41 43 51 64 53 54 57 53 60 69 78 78 87 97 97 Average Rating 48 | 5 7 8 24 31 38 36 48 51 49 52 52 48 55 65 69 74 74 85 93 On Entrance 46 | . 7 8 9 31 37 41 41 43 49 53 50 53 53 59 67 75 75 80 97 Avg Prop Armor Cover (%) 10 | . . 12 9 . 14 10 9 8 . . 6 . . . . 4 3 . 13 Naked Turns . | . . . . . . . . . . . . . . . . . . . . Heaviest Build 112 | 12 29 32 57 62 57 63 63 63 61 62 62 51 60 73 89 87 86 84 112 Greatest Support 178 | 20 40 40 80 80 82 62 28 100 90 90 90 60 65 83 83 83 170 178 170 Greatest Overweight (x) 10 | . . 1 3 . 1 2 2 1 . . 1 . . . 1 1 1 . 10 Average Overweight (x) . | . . . . . . . 2 . . . . . . . . . . . . Largest Inventory Capacity 25 | 8 15 15 15 15 15 15 15 15 15 15 15 15 15 20 20 20 20 20 25 Average Capacity 16 | 7 11 15 15 15 15 15 15 15 15 15 15 15 15 16 20 20 20 20 20 Most Carried 25 | 5 11 15 15 15 15 15 15 15 15 15 15 15 15 15 20 20 20 20 25 Average Carried 15 | 3 8 14 14 14 14 13 14 14 14 14 14 15 14 14 17 19 19 19 20 Final Capacity 25 | 8 15 15 15 15 15 15 15 15 15 15 15 15 15 20 20 20 20 20 25 Final Carried 20 | 5 11 15 15 15 15 13 15 15 15 15 15 15 13 14 20 20 20 20 20 Class Distribution -------------------- 74% | Scavenger-Mutant 18% | Mutant 6% | Scavenger-Skirmisher Dominant Class ---------------- Mutant | -10/Materials Mutant | -10/Subcaves Scavenger-Mutant | -8/Materials Scavenger-Mutant | -8/Garrison Mutant | -8/Materials Mutant | -8/Garrison Scavenger-Mutant | -7/Factory Scavenger-Mutant | -7/Garrison Scavenger-Mutant | -7/Factory Scavenger-Mutant | -7/Lower Caves Scavenger-Mutant | -7/Lower Caves Scavenger-Mutant | -7/Data Miner Scavenger-Mutant | -6/Proximity Caves Scavenger-Mutant | -6/Factory Scavenger-Mutant | -6/Waste Scavenger-Mutant | -6/Factory Scavenger-Mutant | -6/Garrison Scavenger-Mutant | -6/Factory Scavenger-Skirmisher | -6/Extension Resources | -11 -10 -10 -8 -8 -8 -8 -7 -7 -7 -7 -7 -7 -6 -6 -6 -6 -6 -6 -6 ----------- Run | Yrd Mat Sub Mat Gar Mat Gar Fac Gar Fac Low Low Dat Pro Fac Was Fac Gar Fac Ext Matter Collected 12840 | 268 186 252 960 999 241 193 437 1329 434 430 497 . 463 107 589 824 1477 936 2218 Remotely 958 | . . . . . . . . . . . . . . . . . . . 958 Salvage Created 17310 | 95 505 237 2044 1611 535 269 308 1452 496 205 519 . 691 92 553 944 1955 2154 2645 Parts 832 | 4 27 11 114 88 36 17 24 63 27 8 33 . 23 2 6 48 84 85 132 Haulers Intercepted 13 | . 2 . 5 . . . . . 1 . . . . 1 . 1 . 1 2 Recyclers Shooed 12 | . 1 . 1 . 1 . 1 . . . . . . . . 2 . 4 2 Parts Field Recycled . | . . . . . . . . . . . . . . . . . . . . Retrieved Matter . | . . . . . . . . . . . . . . . . . . . . Parts Self-Destructed 59 | . . 15 . . . . . . . 13 11 . 20 . . . . . . Prevented 1 | . . . . . . . . . . . . . 1 . . . . . . Parts Restored . | . . . . . . . . . . . . . . . . . . . . Kills | -11 -10 -10 -8 -8 -8 -8 -7 -7 -7 -7 -7 -7 -6 -6 -6 -6 -6 -6 -6 ------- Run | Yrd Mat Sub Mat Gar Mat Gar Fac Gar Fac Low Low Dat Pro Fac Was Fac Gar Fac Ext Combat Hostiles Destroyed 268 | . 14 5 37 36 9 12 7 28 10 5 12 . 16 . 1 12 26 17 21 Melee 1 | . . . . . . . . . . . . . . . 1 . . . . Guns 121 | . 14 . 18 11 . . . 10 2 . 5 . 1 . . 9 20 15 16 Cannons 100 | . . 4 16 21 9 10 7 16 6 1 3 . 4 . . . 1 2 . AOE 38 | . . . 3 4 . 2 . 1 2 4 4 . 8 . . 1 4 . 5 Classes Destroyed 26 | 2 4 3 7 3 1 . 1 1 . . 2 . 1 . . 1 . . . Worker 13 | . . . 2 . 1 . 1 . . . . . . . . 3 . 3 3 Builder 11 | . . . 2 . . . 1 . . . . . . . . 1 . 1 6 Tunneler 10 | 1 . . 2 . . . 1 . . . . . . . . 1 . . 5 Hauler 13 | . 2 . 5 . . . . . 1 . . . . 1 . 1 . 1 2 Recycler 15 | 1 1 . 1 . 1 . . . . . . . . . . . . 6 5 Minesweeper 1 | . . . . . . . . . . . . . 1 . . . . . . Mechanic 3 | . . . 1 . . . . . 1 . . . . . . 1 . . . Operator 2 | . . . . . . . 1 . . . . . . . . 1 . . . Watcher 12 | . 3 . 3 . 2 . 1 . . . . . . 1 . 1 . 1 . Swarmer 60 | . 11 . 7 8 . 6 2 9 . . 4 . 3 . . . 8 1 1 Cutter 4 | . . . . 1 . . . . . . . . . . . . 3 . . Grunt 101 | . 3 . 16 13 4 4 4 8 6 3 . . 5 . 1 5 9 11 9 Brawler 7 | . . . . 1 . . . . . . . . 3 . . . . . 3 Duelist 8 | . . . 2 . . . . 1 2 1 . . 2 . . . . . . Sentry 51 | . . . 10 10 3 . . 8 1 1 1 . 1 . . 2 6 2 6 Demolisher 1 | . . . . . . . . . . . . . . . . 1 . . . Specialist 2 | . . . . . 2 . . . . . . . . . . . . . . Hunter 5 | . . . 1 . . . . . . . . . 1 . . 3 . . . Programmer 12 | . . . . 3 . 2 1 1 1 . . . 1 . . 1 . 2 . Heavy 2 | . . . 1 . . . . . . . . . . . . . . 1 . Behemoth 3 | . . . . . . . . 1 . . . . . . . . . . 2 Artisan 2 | . . 2 . . . . . . . . . . . . . . . . . Subdweller 5 | . . 5 . . . . . . . . . . . . . . . . . Scientist 1 | . . 1 . . . . . . . . . . . . . . . . . Tinkerer 1 | . . . . . . . . . . . 1 . . . . . . . . Thug 5 | . . . . . . . . . . . 5 . . . . . . . . Savage 1 | . . . . . . . . . . . . . . . . . . . 1 Butcher 1 | . . . . . . . . . . . 1 . . . . . . . . Mutant 1 | . . . . . . . . . . . 1 . . . . . . . . Best Kill Streak 11 | 2 4 2 5 6 3 4 4 4 4 4 5 . 9 1 1 3 4 9 11 Combat Bots Only 9 | . 4 2 4 6 2 4 4 4 4 4 5 . 9 . 1 3 4 6 7 Max Kills in Single Turn 4 | 1 2 1 2 2 1 2 2 2 2 2 2 . 3 1 1 1 3 1 4 Gunslinging 1 | . 1 . . . . . . . . . . . . . . . 1 . . Exploded 3 | . . . 1 2 . 2 . 1 2 2 2 . 3 . . 1 3 . 3 Melee 1 | . . . . . . . . . . . . . . . 1 . . . . Uniques/NPCs Destroyed . | . . . . . . . . . . . . . . . . . . . . Combat | -11 -10 -10 -8 -8 -8 -8 -7 -7 -7 -7 -7 -7 -6 -6 -6 -6 -6 -6 -6 -------- Run | Yrd Mat Sub Mat Gar Mat Gar Fac Gar Fac Low Low Dat Pro Fac Was Fac Gar Fac Ext Hostile Shots Fired 2063 | . 87 36 165 197 28 71 40 406 46 40 34 . 78 . 6 170 318 110 231 Missed 665 | . 17 9 45 47 9 12 12 128 14 22 6 . 24 . 2 80 123 34 81 Hits 1398 | . 70 27 120 150 19 59 28 278 32 18 28 . 54 . 4 90 195 76 150 Melee 31 | . . . 1 7 . . . 5 1 . 4 . 1 . . . 4 . 8 Projectile 1367 | . 70 27 119 143 19 59 28 273 31 18 24 . 53 . 4 90 191 76 142 AOE 9 | . . . . 2 . . 1 . . . . . . . . 5 1 . . Critical Strikes 45 | . . 1 5 10 1 1 . 2 . . 2 . 3 . . 4 6 2 8 Part Disruptions 1 | . . . . . . . . . . . . . . . . 1 . . . Damage Taken 19889 | . 582 609 1894 2239 288 753 510 3147 346 80 549 . 1057 . 78 1502 2266 1429 2560 Core 2197 | . 126 116 210 172 37 101 27 259 32 4 51 . 206 . . 214 237 105 300 Absorbed by Shields 755 | . . . . . . . . 200 123 40 76 . 58 . . . . . 258 Reduced by Siege Mode 250 | . . . . . . . . . . . . . . . . . . 29 221 Ignored by Resistances 12 | . . . . . . . . . . . . . . . . . . . 12 Regen/Repaired (Parts) 493 | . . . 225 . . . 139 . 45 . . . . . . 84 . . . Core Remaining (%) 31 | 100 . 3 . . . 5 . . . . . . 17 . . . . . . Volleys Fired 1319 | 9 73 59 142 139 28 44 30 145 49 46 48 . 44 5 6 59 158 86 149 Largest 2 | 2 2 2 2 2 2 2 2 2 2 2 2 . 2 2 2 2 2 2 2 Hottest 171 | 70 70 160 110 121 100 100 105 123 121 171 130 . 166 121 78 166 166 110 140 Shots Fired 2446 | 18 145 97 273 253 55 87 60 273 95 66 76 . 81 7 12 112 278 168 290 Gun 1512 | 18 145 . 138 118 . . . 176 19 13 41 . 45 3 8 103 251 155 279 Cannon 884 | . . 86 131 131 55 86 60 97 74 46 33 . 30 4 . 9 24 12 6 Launcher 39 | . . . 4 4 . 1 . . 2 7 2 . 6 . 4 . 3 1 5 Special 11 | . . 11 . . . . . . . . . . . . . . . . . Kinetic 1448 | 9 105 40 143 69 27 41 30 201 46 6 21 . 31 5 8 39 201 155 271 Thermal 904 | 9 40 57 119 180 28 45 30 54 47 53 39 . 36 2 . 73 74 12 6 Explosive 39 | . . . 4 4 . 1 . . 2 7 2 . 6 . 4 . 3 1 5 Electromagnetic 55 | . . . 7 . . . . 18 . . 14 . 8 . . . . . 8 Robot Hit Streak 29 | 6 9 8 19 8 13 14 10 21 5 7 15 . 20 11 6 11 28 29 28 Robot Miss Streak 7 | 3 5 2 4 6 4 7 6 6 6 2 2 . 4 3 2 3 4 3 7 Penetration Max 3 | . . . 1 1 . . 1 1 . . . . 1 . . . . 2 3 Secondary Targets 13 | . 5 . 2 . . . . . . . . . . . . 1 2 1 2 Max Gunslinging Chain 1 | . 1 . 1 . . . . . . . . . . . . 1 1 1 1 Shots Hit Robots 1356 | 10 77 36 181 116 34 35 31 151 42 9 36 . 50 5 12 72 155 118 186 Core Hits 712 | 4 33 10 88 59 16 15 15 61 22 9 23 . 35 4 11 37 73 74 123 Critical Kills 68 | . . 2 3 . . . . 2 . . 1 . 2 . . 2 4 23 29 Critical Parts Destroyed 88 | . 1 . 1 1 . . . 9 . . . . 1 . . 2 13 22 38 Critical Strikes 212 | 1 2 3 9 9 2 2 . 19 3 . 3 . 3 . . 11 22 45 78 Burn 24 | 1 1 . 4 5 . . . . 2 . 1 . . . . 7 3 . . Meltdown 5 | . . 2 . . . . . 1 . . . . 2 . . . . . . Destroy 166 | . 1 . 4 1 . . . 15 . . 1 . 1 . . 4 18 45 76 Blast 11 | . . 1 1 1 2 2 . 3 1 . . . . . . . . . . Corrupt 3 | . . . . . . . . . . . 1 . . . . . . . 2 Impale 3 | . . . . 2 . . . . . . . . . . . . 1 . . Melee Attacks 50 | . . . . 20 . . . 2 . . 6 . . . 6 . 16 . . Impact . | . . . . . . . . . . . . . . . . . . . . Slashing . | . . . . . . . . . . . . . . . . . . . . Piercing 50 | . . . . 20 . . . 2 . . 6 . . . 6 . 16 . . Sneak Attacks 2 | . . . . . . . . . . . 1 . . . 1 . . . . Combat Hostiles . | . . . . . . . . . . . . . . . . . . . . Follow-up Attacks . | . . . . . . . . . . . . . . . . . . . . Damage Inflicted 31072 | 100 720 569 3765 3190 861 1148 967 3834 1448 582 1281 . 1974 128 689 1854 3594 1459 2909 Guns 14196 | 100 720 . 1821 984 . . . 2320 239 25 491 . 653 17 125 1584 2348 1123 1646 Cannons 10440 | . . 569 1617 1187 861 1025 967 1336 994 178 335 . 584 111 . 59 151 336 130 Explosions 4400 | . . . 305 229 . 123 . 111 215 379 300 . 737 . 356 210 302 . 1133 Melee 2011 | . . . . 788 . . . 67 . . 155 . . . 208 . 793 . . Ramming 25 | . . . 22 2 . . . . . . . . . . . 1 . . . Kinetic 14333 | 39 532 220 1971 741 520 516 490 2637 607 18 405 . 438 128 125 581 1730 1123 1512 Thermal 9861 | 61 188 349 1418 1430 341 509 477 957 626 185 349 . 674 . . 1062 769 336 130 Explosive 4216 | . . . 232 229 . 123 . . 215 379 300 . 737 . 356 210 302 . 1133 Electromagnetic 626 | . . . 122 . . . . 173 . . 72 . 125 . . . . . 134 Impact . | . . . . . . . . . . . . . . . . . . . . Slashing . | . . . . . . . . . . . . . . . . . . . . Piercing 2011 | . . . . 788 . . . 67 . . 155 . . . 208 . 793 . . Highest Corruption 13 | . . . 8 11 11 13 1 4 4 4 4 4 10 . . 4 4 5 5 Average Corruption 5 | . . . 5 8 11 12 1 3 4 4 4 4 5 . . 2 4 4 5 Corruption Purged 1 | . . . . . . . 1 . . . . . . . . . . . . Corruption Blocked . | . . . . . . . . . . . . . . . . . . . . Effects 430 | . . . 45 87 17 24 . 27 20 37 32 2 22 . . 13 49 19 36 Message Errors 100 | . . . 12 14 5 6 . 3 6 6 8 . 8 . . 5 11 5 11 Matter Fused 102 | . . . 5 19 4 7 . 9 8 11 7 1 5 . . 1 10 3 12 Heat Flow Errors 36 | . . . 3 12 3 2 . 1 . 5 1 . 1 . . 1 4 2 1 Energy Discharges 41 | . . . 6 7 1 1 . 3 . 7 3 1 3 . . 1 5 1 2 Parts Rejected 11 | . . . 1 3 . . . 1 1 . 1 . 1 . . 1 2 . . Parts Fused 6 | . . . 1 2 . . . . . 1 1 . . . . 1 . . . Data Loss (minor) 56 | . . . 8 10 1 3 . 7 4 2 6 . 3 . . . 8 2 2 Data Loss (major) 24 | . . . 4 2 2 1 . 2 . 2 2 . . . . 1 3 3 2 Misfires 20 | . . . 1 5 . 2 . 1 . 3 1 . 1 . . 1 3 . 2 Alerts 7 | . . . 1 2 . . . . 1 . 1 . . . . . 1 . 1 Weapon Failures 27 | . . . 3 11 1 2 . . . . 1 . . . . 1 2 3 3 Overload Shots . | . . . . . . . . . . . . . . . . . . . . Overflow Damage 327 | . . 12 9 14 24 37 34 2 40 26 7 . 28 . . 35 59 . . Projectiles 216 | . . 12 9 14 24 27 34 2 40 26 . . 28 . . . . . . Explosions 73 | . . . . . . 10 . . . . . . . . . 35 28 . . Melee 38 | . . . . . . . . . . . 7 . . . . . 31 . . Knockbacks 50 | . . 6 9 6 5 6 4 10 4 . . . . . . . . . . Impact . | . . . . . . . . . . . . . . . . . . . . Kinetic 44 | . . 6 8 6 4 5 4 7 4 . . . . . . . . . . Secondary 6 | . . . 1 . 1 1 . 3 . . . . . . . . . . . Self-Inflicted Damage 207 | . . . 31 8 . . . 25 . . 103 . . . . 40 . . . Shots 6 | . . . 1 1 . . . 1 . . 2 . . . . 1 . . . Rammed 3 | . . . 2 1 . . . . . . . . . . . . . . . Targets Rammed 4 | . . . 2 1 . . . . . . . . . . . 1 . . . Kicked 1 | . . . . . . . . . . . . . . . . 1 . . . Crushed . | . . . . . . . . . . . . . . . . . . . . Highest Temperature 433 | 80 160 269 299 256 256 283 175 420 132 246 98 . 391 22 . 433 280 228 231 Average Temperature 67 | 31 48 148 60 60 141 125 47 96 47 58 23 . 49 12 . 93 64 52 55 Received Heat Transfer 6206 | . 42 432 810 720 144 198 117 822 146 6 94 . 562 . 36 211 774 447 645 Effects 15 | . . 1 . . . 1 . 10 . . . . . . . 3 . . . Shutdowns 1 | . . . . . . . . 1 . . . . . . . . . . . Energy Bleed 4 | . . 1 . . . 1 . 2 . . . . . . . . . . . Interference 6 | . . . . . . . . 6 . . . . . . . . . . . Short Circuit 1 | . . . . . . . . 1 . . . . . . . . . . . Damage (major) 3 | . . . . . . . . . . . . . . . . 3 . . . Siege Activations 3 | . . . . . . . . . . . . . . . . . . 1 2 Total Turns 227 | . . . . . . . . . . . . . . . . . . 32 195 Longest Duration 119 | . . . . . . . . . . . . . . . . . . 32 119 Martial Activations . | . . . . . . . . . . . . . . . . . . . . Shielding Activations . | . . . . . . . . . . . . . . . . . . . . Robots Disrupted 2 | . . . . . . . . . . . . . 1 . . . . . 1 Combat Hostiles 2 | . . . . . . . . . . . . . 1 . . . . . 1 Robots Corrupted 1 | . . . . . . . . . . . . . 1 . . . . . . Combat Hostiles 1 | . . . . . . . . . . . . . 1 . . . . . . Parts Fried 4 | . . . . . . . . . . . 1 . 3 . . . . . . Impact Corruptions . | . . . . . . . . . . . . . . . . . . . . Robots Melted 8 | . . 2 . . . . . 1 . . . . 2 . . 2 1 . . Combat Hostiles 7 | . . 1 . . . . . 1 . . . . 2 . . 2 1 . . Parts Melted 33 | . 1 6 3 6 . 2 1 3 . . . . 1 . . 5 5 . . Heat Transferred 17938 | 259 629 740 3084 2716 555 777 703 1314 1036 287 620 . 1074 . . 2183 1406 407 148 Parts Sabotaged . | . . . . . . . . . . . . . . . . . . . . Parts Stolen . | . . . . . . . . . . . . . . . . . . . . Parts Stripped . | . . . . . . . . . . . . . . . . . . . . Power Chain Reactions 2 | . . . 1 . . . . 1 . . . . . . . . . . . Alert | -11 -10 -10 -8 -8 -8 -8 -7 -7 -7 -7 -7 -7 -6 -6 -6 -6 -6 -6 -6 ------- Run | Yrd Mat Sub Mat Gar Mat Gar Fac Gar Fac Low Low Dat Pro Fac Was Fac Gar Fac Ext Maximum Alert Level 5 | . . . 2 5 3 3 2 5 4 . . . . . . 1 4 3 3 Low Security (%) 28 | 100 100 . 40 . . . . . . . . . . 100 100 93 5 . . Level 1 11 | . . . 57 8 . . . 3 . . . . . . . 6 11 . . Level 2 20 | . . . 2 21 . 12 100 24 . . . . . . . . 15 34 85 Level 3 23 | . . . . 22 100 87 . 25 35 . . . . . . . 57 65 14 Level 4 13 | . . . . 35 . . . 40 64 . . . . . . . 10 . . Level 5 2 | . . . . 12 . . . 4 . . . . . . . . . . . High Security . | . . . . . . . . . . . . . . . . . . . . Max Security . | . . . . . . . . . . . . . . . . . . . . Peak Influence 1910 | 5 140 . 430 1910 1081 1093 573 1647 1300 . . . . 44 25 252 1273 962 980 Initial 930 | . . . . 275 930 696 573 301 864 . . . . 44 10 . 173 667 463 Average 582 | . 58 . 213 1026 997 858 491 970 1085 . . . . 13 1 50 764 760 629 Influence Increases 11596 | 10 474 . 1226 1735 321 417 228 1446 1044 110 110 . 514 81 46 656 1230 653 1295 Destroy 0b10 Robot/C 5760 | . 280 . 740 740 180 240 140 600 480 100 100 . 400 . 20 260 560 340 580 Destroy 0b10 Robot/NC 465 | 10 30 . 80 15 20 . 25 10 10 . . . 5 10 . 50 35 60 105 Destroy Leader 886 | . 70 . 216 20 64 20 32 20 82 10 10 . 50 4 . 104 30 94 60 Allied During Kill 263 | . . . . 2 . . . 7 96 . . . 59 2 5 8 8 . 76 Successful Hack 218 | . 19 . 27 14 . . 19 18 37 . . . . 5 . 42 12 4 21 Select Force Hacks 120 | . 30 . . . . . . . . . . . . 60 . . . 30 . Disable Machine 585 | . . . 105 90 45 . . 60 120 . . . . . . 90 30 30 15 Anti-Garrison Action 1800 | . . . . 600 . 50 . 550 150 . . . . . . . 450 . . Destroy Structure 539 | . . . 43 119 12 47 12 61 54 . . . . . 21 42 75 20 33 Lose Combat Pursuer 660 | . 45 . 15 135 . 60 . 120 15 . . . . . . 60 30 75 105 Active Sensor Use 300 | . . . . . . . . . . . . . . . . . . . 300 Influence Decreases 10652 | 10 426 48 802 249 1160 395 890 230 1391 1034 486 . 442 123 76 408 205 980 1297 Entered New Map 4726 | . . 24 . 149 980 375 520 130 783 481 72 . . 28 20 . 75 606 483 Time Decay 4642 | 10 406 24 592 . 180 . 350 . 398 553 414 . 352 95 56 364 . 334 514 Lost Part 614 | . 20 . 60 60 . 20 20 100 . . . . 50 . . 34 90 40 120 Lost Ally 370 | . . . . 40 . . . . 60 . . . 40 . . 10 40 . 180 Purge Threat 300 | . . . 150 . . . . . 150 . . . . . . . . . . Squads Dispatched 48 | . 2 . 7 . 2 . 3 . 7 . . . 1 3 . 10 . 5 8 Investigation 18 | . 2 . 1 . . . 2 . 1 . . . . 2 . 5 . 1 4 Extermination 5 | . . . . . . . 1 . 1 . . . . . . 2 . 1 . Reinforcement 11 | . . . 3 . 2 . . . . . . . . 1 . . . 3 2 Assault 9 | . . . . . . . . . 4 . . . 1 . . 2 . . 2 Garrison 5 | . . . 3 . . . . . 1 . . . . . . 1 . . . Intercept . | . . . . . . . . . . . . . . . . . . . . Searches Triggered . | . . . . . . . . . . . . . . . . . . . . Data Miner Redirects 7 | . . . . . . . . . . . . . . 1 . 3 . . 3 Construction Impeded 3 | . . . . . . . . . . . . . . . . . . 1 2 Haulers Reinforced 1 | . . . . . . . . . . . . . . . . . . 1 . Active Scanning Responses 3 | . . . . . . . . . . . . . . . . . . . 3 Cargo Convoy Interrupts . | . . . . . . . . . . . . . . . . . . . . Stealth | -11 -10 -10 -8 -8 -8 -8 -7 -7 -7 -7 -7 -7 -6 -6 -6 -6 -6 -6 -6 --------- Run | Yrd Mat Sub Mat Gar Mat Gar Fac Gar Fac Low Low Dat Pro Fac Was Fac Gar Fac Ext Distress Signals 10 | . 2 . 4 . . . . . . . . . . . . 1 . 1 2 Communications Jammed 32 | . . . . . . . . . . . . . . . . 32 . . . Distress Signals 32 | . . . . . . . . . . . . . . . . 32 . . . Times Spotted 386 | . 23 5 48 41 14 14 14 35 28 4 12 . 18 2 1 31 27 25 44 Peak Tracking Total 9 | . 5 2 4 8 3 5 3 5 5 1 4 . 9 2 . 5 6 4 9 Tactical Retreats 30 | . 2 . 1 4 . 3 . 4 1 . . . . . . 4 1 5 5 Traps | -11 -10 -10 -8 -8 -8 -8 -7 -7 -7 -7 -7 -7 -6 -6 -6 -6 -6 -6 -6 ------- Run | Yrd Mat Sub Mat Gar Mat Gar Fac Gar Fac Low Low Dat Pro Fac Was Fac Gar Fac Ext Traps Triggered 18 | . 1 . 3 2 . . 1 3 . . . . . 1 . 3 4 . . Indirectly . | . . . . . . . . . . . . . . . . . . . . Trap Hack Attempts . | . . . . . . . . . . . . . . . . . . . . Triggered . | . . . . . . . . . . . . . . . . . . . . Disarmed . | . . . . . . . . . . . . . . . . . . . . Reprogrammed . | . . . . . . . . . . . . . . . . . . . . Reused . | . . . . . . . . . . . . . . . . . . . . Traps Extracted . | . . . . . . . . . . . . . . . . . . . . Installed . | . . . . . . . . . . . . . . . . . . . . Triggered . | . . . . . . . . . . . . . . . . . . . . Machines | -11 -10 -10 -8 -8 -8 -8 -7 -7 -7 -7 -7 -7 -6 -6 -6 -6 -6 -6 -6 ---------- Run | Yrd Mat Sub Mat Gar Mat Gar Fac Gar Fac Low Low Dat Pro Fac Was Fac Gar Fac Ext Machines Disabled 60 | . . . 7 9 3 1 . 11 9 . 1 . 2 . . 6 7 2 2 Max in Single Turn 2 | . . . 1 1 1 1 . 2 1 . 1 . 1 . . 2 1 1 1 Garrison Access 2 | . . . . . . . . . 1 . . . . . . 1 . . . Garrison Relay 13 | . . . . 3 . 1 . 5 . . . . . . . . 4 . . Phase Generator 1 | . . . . . . . . 1 . . . . . . . . . . . Machines Repaired . | . . . . . . . . . . . . . . . . . . . . Machines Dismantled . | . . . . . . . . . . . . . . . . . . . . Machines Sabotaged . | . . . . . . . . . . . . . . . . . . . . Overloaded Fab Kills . | . . . . . . . . . . . . . . . . . . . . Hacking | -11 -10 -10 -8 -8 -8 -8 -7 -7 -7 -7 -7 -7 -6 -6 -6 -6 -6 -6 -6 --------- Run | Yrd Mat Sub Mat Gar Mat Gar Fac Gar Fac Low Low Dat Pro Fac Was Fac Gar Fac Ext Machines Accessed 65 | . 6 . 13 2 3 1 6 3 5 . . 4 . 3 . 9 3 4 3 Terminals 37 | . 5 . 9 2 1 1 3 3 1 . . . . 1 . 4 3 1 3 Fabricators 3 | . . . . . . . . . 2 . . . . . . 1 . . . Repair Stations 7 | . . . 1 . . . 2 . 1 . . . . . . 2 . 1 . Recycling Units 6 | . 1 . 1 . 1 . . . . . . . . 2 . . . 1 . Scanalyzers 4 | . . . 1 . . . . . 1 . . . . . . 1 . 1 . Garrison Access 4 | . . . 1 . 1 . 1 . . . . . . . . 1 . . . Total Hacks 169 | . 14 . 33 4 5 1 9 6 16 . . 31 . 7 . 21 6 8 8 Successful 102 | . 5 . 18 1 3 . 3 2 12 . . 31 . 6 . 11 2 5 3 Failed 64 | . 8 . 14 3 2 1 6 4 4 . . . . 1 . 9 4 3 5 Catastrophic 12 | . 1 . 4 1 . . 1 1 . . . . . . . 2 . . 2 Database Lockouts 3 | . 1 . 1 . . . . . . . . . . . . 1 . . . Manual 44 | . 9 . 11 . 1 . 6 . 6 . . . . 5 . 4 1 1 . Terminals 86 | . 13 . 24 4 2 1 4 6 4 . . . . 4 . 9 6 1 8 Fabricators 7 | . . . . . . . . . 6 . . . . . . 1 . . . Repair Stations 12 | . . . 3 . . . 4 . 1 . . . . . . 2 . 2 . Recycling Units 8 | . 1 . 1 . 2 . . . . . . . . 3 . . . 1 . Scanalyzers 19 | . . . 4 . . . . . 5 . . . . . . 6 . 4 . Garrison Access 6 | . . . 1 . 1 . 1 . . . . . . . . 3 . . . Terminal Hacks 64 | . 4 . 11 1 1 . 1 2 2 . . 31 . 3 . 2 2 1 3 Record 11 | . . . . . . . . . . . . 11 . . . . . . . Part Schematic 16 | . 2 . 1 . . . . . . . . 13 . . . . . . . Robot Schematic 5 | . . . . . . . . . . . . 4 . . . . . . 1 Robot Analysis 2 | . . . 1 . 1 . . . . . . . . . . . . . . Prototype ID Bank 6 | . . . 2 . . . . . . . . 3 . . . . . . 1 Open Door 1 | . . . . . . . . 1 . . . . . . . . . . . Open DSF 2 | . . . . . . . . . . . . . . . . 1 . 1 . Branch Access Points 4 | . . . . . . . 1 . 1 . . . . 1 . 1 . . . Emergency Access Points 4 | . . . 1 1 . . . 1 . . . . . . . . 1 . . Terminal Index 2 | . 1 . 1 . . . . . . . . . . . . . . . . Alert Level 1 | . . . . . . . . . . . . . . 1 . . . . . Unreport Threat 2 | . . . 1 . . . . . 1 . . . . . . . . . . Transport Status 1 | . . . 1 . . . . . . . . . . . . . . . . Recall Investigation 1 | . . . . . . . . . . . . . . . . . . . 1 Hauler Manifests 2 | . 1 . 1 . . . . . . . . . . . . . . . . Zone Layout 3 | . . . 2 . . . . . . . . . . 1 . . . . . Garrison Registry 1 | . . . . . . . . . . . . . . . . . 1 . . Fabricator Hacks 2 | . . . . . . . . . 2 . . . . . . . . . . Network Status 1 | . . . . . . . . . 1 . . . . . . . . . . Build 1 | . . . . . . . . . 1 . . . . . . . . . . Repair Station Hacks 3 | . . . 2 . . . . . . . . . . . . . . 1 . Scan Component 2 | . . . 1 . . . . . . . . . . . . . . 1 . Repair 1 | . . . 1 . . . . . . . . . . . . . . . . Recycling Unit Hacks 1 | . . . . . 1 . . . . . . . . . . . . . . Retrieve Components 1 | . . . . . 1 . . . . . . . . . . . . . . Scanalyzer 15 | . . . 3 . . . . . 5 . . . . . . 5 . 2 . Insert Component 3 | . . . 1 . . . . . 1 . . . . . . 1 . . . Analyze 3 | . . . 1 . . . . . 1 . . . . . . 1 . . . Retrieve Study 9 | . . . 1 . . . . . 3 . . . . . . 3 . 2 . Garrison Access Hacks 4 | . . . 1 . 1 . 1 . . . . . . . . 1 . . . Unlock Access 4 | . . . 1 . 1 . 1 . . . . . . . . 1 . . . Unauthorized Hacks 13 | . 1 . 1 . . . 1 . 3 . . . . 3 . 3 . 1 . Terminals 4 | . . . 1 . . . . . 1 . . . . 1 . 1 . . . Track 3 | . . . 1 . . . . . 1 . . . . . . 1 . . . Botnet 1 | . . . . . . . . . . . . . . 1 . . . . . Fabricators 1 | . . . . . . . . . 1 . . . . . . . . . . Haulers 1 | . . . . . . . . . 1 . . . . . . . . . . Repair Stations 4 | . . . . . . . 1 . 1 . . . . . . 2 . . . Patch 4 | . . . . . . . 1 . 1 . . . . . . 2 . . . Recycling Units 4 | . 1 . . . . . . . . . . . . 2 . . . 1 . Tunnel 4 | . 1 . . . . . . . . . . . . 2 . . . 1 . Scanalyzers . | . . . . . . . . . . . . . . . . . . . . Garrison Access . | . . . . . . . . . . . . . . . . . . . . Data Cores Recovered 2 | . . . . . . . 1 . . . . . . . . 1 . . . Used 1 | . . . . . . . . . . . . . . . . 1 . . . Hacking Detections 48 | . 5 . 12 2 2 1 5 3 4 . . . . 1 . 6 2 2 3 Full Trace Events 7 | . . . . 1 . . 1 1 . . . . . . . 2 1 . 1 Feedback Events 2 | . . . . 1 . . . . . . . . . . . 1 . . . Corruption 2 | . . . . 1 . . . . . . . . . . . 1 . . . Feedback Blocked . | . . . . . . . . . . . . . . . . . . . . Robot Schematics Acquired 5 | . . . . . . . . . . . . 4 . . . . . . 1 Robots Built . | . . . . . . . . . . . . . . . . . . . . Authchips . | . . . . . . . . . . . . . . . . . . . . Time . | . . . . . . . . . . . . . . . . . . . . Total Robot Build Rating . | . . . . . . . . . . . . . . . . . . . . Part Schematics Acquired 18 | . 1 . 2 . . . . . 1 . . 13 . . . 1 . . . Parts Built 2 | . . . . . . . . . 2 . . . . . . . . . . Authchips . | . . . . . . . . . . . . . . . . . . . . Time 47 | . . . . . . . . . 47 . . . . . . . . . . Total Part Build Rating 10 | . . . . . . . . . 10 . . . . . . . . . . Part Studies Acquired 3 | . . . . . . . . . . . . . . . . 2 . 1 . Parts Repaired 1 | . . . 1 . . . . . . . . . . . . . . . . Time 44 | . . . 44 . . . . . . . . . . . . . . . . Parts Recycled . | . . . . . . . . . . . . . . . . . . . . Recycled Matter . | . . . . . . . . . . . . . . . . . . . . Retrieved Matter . | . . . . . . . . . . . . . . . . . . . . Retrieved Components 3 | . . . . . 3 . . . . . . . . . . . . . . Parts Scanalyzed 3 | . . . 1 . . . . . 1 . . . . . . 1 . . . Part Schematics Acquired 3 | . . . 1 . . . . . 1 . . . . . . 1 . . . Parts Damaged . | . . . . . . . . . . . . . . . . . . . . Bothacking | -11 -10 -10 -8 -8 -8 -8 -7 -7 -7 -7 -7 -7 -6 -6 -6 -6 -6 -6 -6 ------------ Run | Yrd Mat Sub Mat Gar Mat Gar Fac Gar Fac Low Low Dat Pro Fac Was Fac Gar Fac Ext Used RIF Installer . | . . . . . . . . . . . . . . . . . . . . Robots Hacked . | . . . . . . . . . . . . . . . . . . . . Non-combat . | . . . . . . . . . . . . . . . . . . . . Combat . | . . . . . . . . . . . . . . . . . . . . Robot Hacks Applied . | . . . . . . . . . . . . . . . . . . . . Relay Couplers Released 62 | . . . . 13 . 5 . 20 2 . . . . . . 8 14 . . Machine Destruction 58 | . . . . 13 . 5 . 20 2 . . . . . . 4 14 . . Programmers 4 | . . . . . . . . . . . . . . . . 4 . . . Fabnet Peak Effective % . | . . . . . . . . . . . . . . . . . . . . Robots Rewired 14 | . . . . 2 . . . . . . 2 . 2 . . . . . 8 Allies Hacked . | . . . . . . . . . . . . . . . . . . . . Hacks Repelled . | . . . . . . . . . . . . . . . . . . . . Allies | -11 -10 -10 -8 -8 -8 -8 -7 -7 -7 -7 -7 -7 -6 -6 -6 -6 -6 -6 -6 -------- Run | Yrd Mat Sub Mat Gar Mat Gar Fac Gar Fac Low Low Dat Pro Fac Was Fac Gar Fac Ext Total Allies 22 | . . . . 2 . . . 3 . . 2 . 3 . . . 2 . 10 Largest Group 6 | . . . . 2 . . . 3 3 . 2 2 3 1 1 1 2 . 6 Highest-Rated Group 182 | . . . . 49 . . . 177 177 . 50 50 158 96 96 96 75 . 182 Highest-Rated Ally 96 | . . . . 34 . . . 95 95 . 25 25 96 96 96 96 46 . 39 Initial Warlord ECA Mod 20 | . . . . . 7 7 7 7 17 17 17 17 16 16 15 15 12 20 20 Warlord Squad Rendezvous 4 | . . . . . . . . . . . . . . 1 . 3 . . . Dakka 1 | . . . . . . . . . . . . . . . . 1 . . . Muscle 1 | . . . . . . . . . . . . . . . . 1 . . . Pyro 1 | . . . . . . . . . . . . . . 1 . . . . . Chimera 1 | . . . . . . . . . . . . . . . . 1 . . . Total Orders . | . . . . . . . . . . . . . . . . . . . . Ally Attacks 179 | . . . . 4 . . . 4 55 . . . 31 . . 5 13 . 67 Total Damage 4807 | . . . . 95 . . . 100 2081 . . . 854 . . 207 415 . 1055 Kills 32 | . . . . 1 . . . 2 14 . . . 4 . . 1 2 . 8 Allies Corrupted . | . . . . . . . . . . . . . . . . . . . . Allies Melted . | . . . . . . . . . . . . . . . . . . . . Intel | -11 -10 -10 -8 -8 -8 -8 -7 -7 -7 -7 -7 -7 -6 -6 -6 -6 -6 -6 -6 ------- Run | Yrd Mat Sub Mat Gar Mat Gar Fac Gar Fac Low Low Dat Pro Fac Was Fac Gar Fac Ext Active Infowar (turns) 11657 | 14 1291 1087 547 . . . 709 . . 1599 1335 109 826 335 638 906 544 381 1336 Optics 155 | . . . . . . . . . . . . . . . . . . 155 . A.S.S. 1563 | . . . . . . . . . . . . . . . . . . 227 1336 IFF 6050 | . . . . . . . 709 . . 1599 1000 109 826 335 638 834 . . . Traps 1 | . . . . . . . . . . . . . . . . . . 1 . Seismic 2939 | 14 1291 1087 547 . . . . . . . . . . . . . . . . Triangulation 2 | . . . . . . . . . . . . . . . . . . 2 . Jamming 2128 | . . . . . . . . . . . 784 . . 150 39 611 544 . . Robot Analysis Total 2 | . . . 1 . 1 . . . . . . . . . . . . . . Derelict Logs Recovered 3 | . . . . . . . . . . 2 . . 1 . . . . . . Drone Launches . | . . . . . . . . . . . . . . . . . . . . Drone Recoveries . | . . . . . . . . . . . . . . . . . . . . Exploration | -11 -10 -10 -8 -8 -8 -8 -7 -7 -7 -7 -7 -7 -6 -6 -6 -6 -6 -6 -6 ------------- Run | Yrd Mat Sub Mat Gar Mat Gar Fac Gar Fac Low Low Dat Pro Fac Was Fac Gar Fac Ext Turns Passed 22481 | 108 1291 1087 2605 2394 366 598 790 1890 954 1601 1335 109 826 335 638 1506 1895 747 1406 Spaces Moved 11595 | 62 709 664 1271 1067 207 292 470 780 498 918 692 90 489 254 419 970 956 291 496 Core 9 | 9 . . . . . . . . . . . . . . . . . . . Treads 6177 | . 530 108 1116 1067 41 145 . 612 498 918 284 . . . . . 84 291 483 Legs 3869 | 53 179 . . . . . . 135 . . 408 90 489 254 419 970 872 . . Wheels 1540 | . . 556 155 . 166 147 470 33 . . . . . . . . . . 13 Hover . | . . . . . . . . . . . . . . . . . . . . Flight . | . . . . . . . . . . . . . . . . . . . . Fastest Speed 50 | 50 120 115 145 160 115 115 130 115 160 160 120 120 120 120 120 101 109 160 125 Average Speed 145 | 109 149 124 158 161 124 153 130 165 160 160 141 120 120 120 128 127 136 160 162 Slowest Speed 400 | 120 160 240 160 163 162 232 130 232 160 160 245 120 120 120 190 178 240 163 400 Overloaded Moves . | . . . . . . . . . . . . . . . . . . . . Propulsion Burnouts . | . . . . . . . . . . . . . . . . . . . . Robots Hopped . | . . . . . . . . . . . . . . . . . . . . Potential Cave-ins 4 | . . . . . . . . . . . 4 . . . . . . . . Cave-ins Triggered . | . . . . . . . . . . . . . . . . . . . . Exploration Rate (%) 50 | 4 74 33 87 87 24 37 14 93 12 84 66 68 61 8 95 19 88 9 53 Regions Visited 19 Branch Regions 6 Pre-discovered Areas 7 | . 1 . . . . . . . . 1 . 1 1 2 . . . 1 . Known Exits Taken 6 | . . . 1 . 1 . 1 . 1 . . . . . . 1 . 1 . Unknown Exits Taken 7 | 1 1 1 . . . . . . . 1 1 1 1 . . . . . . Scrap Searched 5 | . . . . . . . . . . 2 . . 3 . . . . . . Spaces Dug 190 | . . . 16 9 . . . 5 3 74 39 . 14 . . 6 2 19 3 Terrain Destroyed 595 | . . . 40 9 11 16 11 103 23 145 52 . 48 . 34 36 11 25 31 Melee . | . . . . . . . . . . . . . . . . . . . . Projectile 122 | . . . 1 . 11 . 11 8 14 38 20 . 10 . . 6 1 1 1 AOE 448 | . . . 39 9 . 16 . 93 9 107 32 . 38 . 34 30 8 18 15 Terrain Rammed . | . . . . . . . . . . . . . . . . . . . . Walls Destroyed . | . . . . . . . . . . . . . . . . . . . . Machines Disabled . | . . . . . . . . . . . . . . . . . . . . Actions | -11 -10 -10 -8 -8 -8 -8 -7 -7 -7 -7 -7 -7 -6 -6 -6 -6 -6 -6 -6 --------- Run | Yrd Mat Sub Mat Gar Mat Gar Fac Gar Fac Low Low Dat Pro Fac Was Fac Gar Fac Ext Total 14895 | 82 815 803 1610 1447 264 356 590 1140 588 987 965 91 652 281 497 1145 1322 440 820 Wait 920 | . 13 55 94 108 14 11 50 140 5 4 160 . 72 1 18 24 92 21 38 Move 11580 | 61 708 663 1271 1066 207 291 470 779 497 917 691 89 488 254 418 969 955 290 496 Hop . | . . . . . . . . . . . . . . . . . . . . Pick Up 153 | 5 8 9 22 13 3 2 8 12 5 2 2 . 5 6 9 18 12 3 9 Fast Attach 156 | 7 1 1 15 13 3 1 5 16 10 4 7 1 4 2 11 16 16 11 12 Attach 72 | . 3 2 10 7 1 3 3 9 . . 1 . 5 1 2 7 8 1 9 Detach 11 | . . . 1 . . . . 1 . . 1 . . . 4 2 . 1 1 Swap 206 | . 4 10 16 25 1 1 3 16 5 8 14 . 14 6 7 23 24 13 16 Drop 250 | . 5 4 37 29 7 3 9 20 17 6 9 1 8 6 14 26 27 14 8 Fire 1319 | 9 73 59 142 139 28 44 30 145 49 46 48 . 44 5 6 59 158 86 149 Melee 50 | . . . . 20 . . . 2 . . 6 . . . 6 . 16 . . Ram . | . . . . . . . . . . . . . . . . . . . . Kick 1 | . . . . . . . . . . . . . . . . 1 . . . Crush 3 | . . . 2 1 . . . . . . . . . . . . . . . Escape Stasis 16 | . . . . 2 . . . . . . . . . . . . 14 . . Rewire 158 | . . . . 24 . . 12 . . . 26 . 12 . 2 . . . 82 Trap . | . . . . . . . . . . . . . . . . . . . . Miscellaneous . | . . . . . . . . . . . . . . . . . . . . Route ------- -11/Scrapyard -10/Materials (discovered 4 exits: [*Mat x2] / [*Min] / [*Sub]) -10/Subcaves -8/Materials (discovered 4 exits: *Fac x3 / Gar) -8/Garrison (discovered 3 exits: *Mat x3) -8/Materials -8/Garrison -7/Factory (discovered 4 exits: Sto / Low x2 / Gar) -7/Garrison (discovered 3 exits: *Fac x3) -7/Factory (discovered 4 exits: Sto x2 / *Low x2) -7/Lower Caves -7/Lower Caves -7/Data Miner -6/Proximity Caves -6/Factory (discovered 4 exits: Low x2 / Ext x2) -6/Waste -6/Factory (discovered 5 exits: Low x2 / Ext x2 / Gar) -6/Garrison (discovered 3 exits: *Fac x3) -6/Factory -6/Extension History --------- Turn | Location | Event 7 | -11/Scrapyard | Discovered new exit (range 15) 109 | -11/Scrapyard | Entered Materials 110 | -10/Materials | Met a group of wandering Federalists 268 | -10/Materials | Discovered new exit (range 3) 306 | -10/Materials | Build established: Mutant 814 | -10/Materials | Discovered new exit (range 9) 863 | -10/Materials | Discovered new exit (range 10) 870 | -10/Materials | Central database locked down 871 | -10/Materials | Discovered new exit (range 10) 1126 | -10/Materials | Core integrity fell below 50% 1400 | -10/Materials | Entered Subcaves 1401 | -10/Subcaves | Continued accompanying wandering Federalists (5) 1401 | -10/Subcaves | Approached by a straggling Scientist 1467 | -10/Subcaves | Shifting Twisted Machinery released Riot Gun 1600 | -10/Subcaves | Lost 6 allies 1855 | -10/Subcaves | Ambushed by angry Subdweller bent on revenge 1868 | -10/Subcaves | Shifting Twisted Machinery released Sub. Power Source 2064 | -10/Subcaves | Core integrity fell below 20% 2472 | -10/Subcaves | Shifting Twisted Machinery released Sub. Laser 2476 | -10/Subcaves | Discovered new exit (range 11) 2487 | -10/Subcaves | Entered Materials 2487 | -8/Materials | Evolved 4 slots: Propulsion x2, Utility x2 2719 | -8/Materials | Garrison activated, responded to threat 2786 | -8/Materials | Build established: Scavenger-Mutant 3180 | -8/Materials | Central database locked down 3310 | -8/Materials | Discovered new exit (range 10) 4119 | -8/Materials | Discovered new exit (range 9) 4955 | -8/Materials | Repaired Hrd. Heavy Armor Plating 5048 | -8/Materials | Discovered new exit (range 6) 5092 | -8/Materials | Identified exit to Garrison 5092 | -8/Materials | Entered Garrison 5128 | -8/Garrison | Triggered checkpoint 5295 | -8/Garrison | Garrison Relay disabled 5418 | -8/Garrison | Triggered checkpoint 5463 | -8/Garrison | Core integrity fell below 50% 5467 | -8/Garrison | Triggered checkpoint 5906 | -8/Garrison | Triggered checkpoint 5943 | -8/Garrison | Garrison Relay disabled 6075 | -8/Garrison | Discovered new exit (range 9) 6212 | -8/Garrison | Triggered checkpoint 6448 | -8/Garrison | Discovered new exit (range 6) 6461 | -8/Garrison | System corruption reached 10% 6514 | -8/Garrison | Lost 3 parts (3n) 6730 | -8/Garrison | Triggered checkpoint 7134 | -8/Garrison | Triggered checkpoint 7254 | -8/Garrison | Discovered new exit (range 10) 7351 | -8/Garrison | Found Hvy. Insulated Plating 7396 | -8/Garrison | Triggered checkpoint 7428 | -8/Garrison | Garrison Relay disabled 7486 | -8/Garrison | Entered Materials 7852 | -8/Materials | Identified exit to Garrison 7852 | -8/Materials | Entered Garrison 7857 | -8/Garrison | Build established: Mutant 7900 | -8/Garrison | Triggered checkpoint 7923 | -8/Garrison | Core integrity fell below 20% 7972 | -8/Garrison | Triggered checkpoint 7975 | -8/Garrison | Garrison Relay disabled 8109 | -8/Garrison | Triggered checkpoint 8434 | -8/Garrison | Discovered new exit (range 10) 8450 | -8/Garrison | Entered Factory 8450 | -7/Factory | Evolved 2 slots: Utility x2 9012 | -7/Factory | Build established: Scavenger-Mutant 9095 | -7/Factory | Identified exit to Storage 9095 | -7/Factory | Identified exit to Lower Caves 9240 | -7/Factory | Identified exit to Garrison 9240 | -7/Factory | Entered Garrison 9318 | -7/Garrison | Lost 3 parts (1n1u1w) 9384 | -7/Garrison | Phase Generator disabled 9577 | -7/Garrison | Lost 3 parts (2n1u) 9642 | -7/Garrison | Triggered checkpoint 9691 | -7/Garrison | Garrison Relay disabled 9810 | -7/Garrison | Spotted B-75 Beast 9883 | -7/Garrison | Destroyed B-75 Beast 9937 | -7/Garrison | Garrison Relay disabled 10085 | -7/Garrison | Triggered checkpoint 10085 | -7/Garrison | Triggered checkpoint 10153 | -7/Garrison | Garrison Relay disabled 10246 | -7/Garrison | Discovered new exit (range 14) 10638 | -7/Garrison | Triggered checkpoint 10726 | -7/Garrison | Rescued a captive Derelict 10751 | -7/Garrison | Garrison Relay disabled 10779 | -7/Garrison | Discovered new exit (range 8) 10850 | -7/Garrison | Triggered checkpoint 10935 | -7/Garrison | Discovered new exit (range 9) 10991 | -7/Garrison | Garrison Relay disabled 11015 | -7/Garrison | Found embedded Infiltrators 11130 | -7/Garrison | Entered Factory 11130 | -7/Factory | Accompanied by 3 allies 11271 | -7/Factory | Fabricated Angular Momentum Engine (x2) 11345 | -7/Factory | Garrison activated, responded to threat 11530 | -7/Factory | First assault squad dispatched 12084 | -7/Factory | Entered Lower Caves 12090 | -7/Lower Caves | Met a Warlord Commander 12091 | -7/Lower Caves | Learned location of Warlord (-5) 12092 | -7/Lower Caves | Warlord Commander delivered Encrypted Comm Array 12095 | -7/Lower Caves | Found Encrypted Comm Array 12203 | -7/Lower Caves | Learned Factory stockpile data 12307 | -7/Lower Caves | Encountered a Warlord checkpoint 12503 | -7/Lower Caves | Attracted the attention of an 0b10 checkpoint 13337 | -7/Lower Caves | Learned Factory emergency access door positions 13383 | -7/Lower Caves | Discovered new exit (range 14) 13685 | -7/Lower Caves | Entered another Lower Caves area 13689 | -7/Lower Caves | Attracted the attention of an 0b10 checkpoint 14234 | -7/Lower Caves | Attacked by a faux Warlord 14290 | -7/Lower Caves | Core integrity fell below 50% 14929 | -7/Lower Caves | Discovered new exit (range 11) 15020 | -7/Lower Caves | Entered Data Miner 15020 | -7/Data Miner | Accompanied by 2 allies 15021 | -7/Data Miner | Discovered new exit (range 6) 15044 | -7/Data Miner | Met Data Miner 15065 | -7/Data Miner | Acquired the access code to Warlord's prototype stash 15065 | -7/Data Miner | Learned location of Section 7 (-2) 15086 | -7/Data Miner | Received God Mode back door access code from Data Miner 15129 | -7/Data Miner | Entered Proximity Caves 15129 | -6/Proximity Caves | Accompanied by 2 allies 15182 | -6/Proximity Caves | Attracted the attention of an 0b10 outpost 15232 | -6/Proximity Caves | Destroyed 9 combat bots 15354 | -6/Proximity Caves | Escorted by Enhanced Grunt 15657 | -6/Proximity Caves | Spotted B-75 Beast 15837 | -6/Proximity Caves | Core integrity fell below 20% 15837 | -6/Proximity Caves | Allies destroyed B-75 Beast 15838 | -6/Proximity Caves | System corruption reached 10% 15934 | -6/Proximity Caves | Discovered new exit (range 8) 15955 | -6/Proximity Caves | Entered Factory 15955 | -6/Factory | Accompanied by 1 ally 15955 | -6/Factory | Evolved 2 slots: Propulsion x1, Utility x1 16090 | -6/Factory | Joined by Warlord Pyro squad 16127 | -6/Factory | Identified exit to Lower Caves 16127 | -6/Factory | Identified exit to Extension 16245 | -6/Factory | Incoming investigation squad redirected 16290 | -6/Factory | Sucked down chute 16290 | -6/Factory | Entered Waste 16290 | -6/Waste | The area was eerily silent 16315 | -6/Waste | 1 allies followed down the chute 16798 | -6/Waste | Discovered new exit (range 12) 16819 | -6/Waste | Found Prototype Launcher 16819 | -6/Waste | Identified Adv. Micro-nuke Launcher 16928 | -6/Waste | Entered Factory 16928 | -6/Factory | Accompanied by 1 ally 17067 | -6/Factory | Assembled infested ambush trap array 17069 | -6/Factory | Central database locked down 17195 | -6/Factory | Spotted B-75 Beast 17422 | -6/Factory | Joined by Warlord Muscle squad 17529 | -6/Factory | Joined by Warlord Dakka squad 17730 | -6/Factory | Incoming assault squad redirected 17737 | -6/Factory | Incoming assault squad redirected 17949 | -6/Factory | Lost 3 parts (2n1u) 17984 | -6/Factory | Joined by Warlord Chimera squad 18335 | -6/Factory | Garrison activated, responded to threat 18412 | -6/Factory | Incoming assault squad redirected 18416 | -6/Factory | Identified exit to Garrison 18434 | -6/Factory | Entered Garrison 18457 | -6/Garrison | Triggered checkpoint 18543 | -6/Garrison | Garrison Relay disabled 18726 | -6/Garrison | Triggered checkpoint 18728 | -6/Garrison | Triggered checkpoint 18860 | -6/Garrison | Build established: Mutant 18948 | -6/Garrison | Triggered checkpoint 19073 | -6/Garrison | Garrison Relay disabled 19137 | -6/Garrison | Rescued a captive Derelict 19138 | -6/Garrison | Rescued a captive Derelict 19163 | -6/Garrison | Build established: Scavenger-Mutant 19185 | -6/Garrison | Discovered new exit (range 8) 19245 | -6/Garrison | Triggered checkpoint 19382 | -6/Garrison | Discovered new exit (range 12) 19414 | -6/Garrison | Triggered checkpoint 19418 | -6/Garrison | Discovered new exit (range 50) 19418 | -6/Garrison | Discovered new exit (range 71) 19418 | -6/Garrison | Discovered new exit (range 13) 19457 | -6/Garrison | Core integrity fell below 50% 19545 | -6/Garrison | Garrison Relay disabled 20018 | -6/Garrison | Triggered checkpoint 20058 | -6/Garrison | Garrison Relay disabled 20329 | -6/Garrison | Entered Factory 20849 | -6/Factory | Found Prototype Device 20849 | -6/Factory | Identified Active Sensor Suite 21024 | -6/Factory | Discovered exit to Extension (range 15) 21076 | -6/Factory | Entered Extension 21139 | -6/Extension | Build established: Scavenger-Skirmisher 21365 | -6/Extension | Lost 4 allies 21449 | -6/Extension | Incoming investigation squad redirected 21646 | -6/Extension | Rescued a captive Derelict 21648 | -6/Extension | Rescued a captive Derelict 21701 | -6/Extension | Incoming investigation squad redirected 21752 | -6/Extension | Lost 5 allies 21951 | -6/Extension | Disrupted transfer network 22117 | -6/Extension | Spotted B-75 Beast 22364 | -6/Extension | Incoming investigation squad redirected 22370 | -6/Extension | Spotted B-75 Beast 22374 | -6/Extension | Core integrity fell below 20% 22404 | -6/Extension | Destroyed B-75 Beast 22442 | -6/Extension | Destroyed B-75 Beast 22463 | -6/Extension | Destroyed 7 combat bots 22463 | -6/Extension | Lost 6 parts (1p3n1u1w) 22476 | -6/Extension | First assault squad dispatched 22482 | -6/Extension | Destroyed by S-27 Virus with Autogun Last Messages --------------- 22470_ U-05 Engineer lays Concrete. 22471_ Acquired Imp. Medium Treads. 22472_ U-05 Engineer lays Concrete. 22472_ Imp. Cooling System destroyed. 22473_ Acquired 100 matter. 22474_ U-05 Engineer lays Concrete. 22475_ Acquired Lyr. Medium Armor Plating. 22476_ ALERT: Unidentified disturbance in Zone 4F, multiple assault carriers dispatched. 22476_ U-05 Engineer lays Concrete. 22476_ Door Terminal disabled. 22476_ Critical hit (Burn: +37). 22477_ U-05 Engineer lays Concrete. 22478_ Acquired Med. Reflective Plating. 22478_ U-05 Engineer lays Concrete. 22479_ Active Sensor Suite destroyed. 22479_ U-05 Engineer lays Concrete. 22482_ C-30 ARC bursts open, deploying its payload. 22482_ S-27 Virus unfolds itself. 22482_ U-05 Engineer destroyed. Map ----- +----------------------------------------------------+ | ???????????????# #????????????????????????? | | ???????????????# %#????????????????????????? | | ???????????????# =!!#????????????????????????? | | ???????????????# [|[=#????????????????????????? | | ???????????????# !%*%#????????????????????????? | | ???????????????# !*]*%##???????????????????????? | | ???????????????#######*%#????????????????????????? | | ??????????????????????#!#????????????????????????? | | ??????????????????????#%#????????????????????????? | | ???????????????????????%#????????????????????????? | | ??????????????????????#%#????????????????????????? | | ??????????????????????# #??????#" ???????????????? | | ????????????????????###%#??##?#;;"???????????????? | | ????????????????????# #%### ## ;;# #?????????????? | | ???????????????????##""!"" "" "?#???????????? | | ??????????????????## "/ w " " #???????????? | | ??????????????????? % % #???????????? | | ?????????????????### [!% = #???????????? | | ################## # % ###?????????? | | *!*! ! * ! ?????????? | | !*/!=!| !|! *!*= ?????????? | | = %= * |*|*%k %%=[!% s ????????? | | ! =!* !] u=k* !!|!% s %s ????????? | | !//% !! * !*=!%*] %t= gg g R su ????????? | | ################# *! [% #???????????? | | ????????????????# #% !!@! #???????????? | | ????????????????#### ! #???????????? | | ???????????????????# #???????????? | | ???????????????????## #???????????? | | ????????????????????###### #"""#######???????????? | | ??????????????????????????##?????????????????????? | | ?????????????????????????????????????????????????? | | | | | | | | | | | | | | | | | | | | | | | | | | | | | | | | | | | | | +----------------------------------------------------+ Best States ------------- Heat Dissipation 91 Energy Generation 25 Energy Capacity 1100 Matter Stores 300 Matter Capacity 300 Sight Range 22 Robot Scan Range 20 Terrain Scan Density 10 Jamming Range 14 Armor Coverage 800 Resistance: TH 15 Weapon Cycling 15 Evasion (%) 63 Targeting Accuracy 8 Target Analysis 11 Recoil Reduction 5 Offensive Hacking 10 Item Schematics ----------------- Hcp. Storage Unit | -10/Materials | Hacked Huge Storage Unit | -8/Materials | Hacked Hvy. Armor Plating | -8/Materials | Scanalyzed Hrd. Medium Armor Plating | -7/Factory | Scanalyzed Matter Neutralizer | -7/Data Miner | Free Adv. Cryofiber Web | -7/Data Miner | Free Neutrino Core | -7/Data Miner | Free Adv. Drone Bay | -7/Data Miner | Free Arm. Leg | -7/Data Miner | Free Enh. Gauss Cannon | -7/Data Miner | Free Adv. Shield Generator | -7/Data Miner | Free Linear Gravjet | -7/Data Miner | Free Prc. Rocket Launcher | -7/Data Miner | Free Exp. Utility Shielding | -7/Data Miner | Free Multireflex Exoskeleton | -7/Data Miner | Free Lgt. Regenerative Plating | -7/Data Miner | Free Combat Drone Bay | -7/Data Miner | Free Lrn. Proton Cannon | -6/Factory | Scanalyzed Robot Schematics ------------------ H-55 Commando | -7/Data Miner | Free W-25 Informer | -7/Data Miner | Free G-50 Soldier | -7/Data Miner | Free M-22 Extractor | -7/Data Miner | Free L-41 Fighter | -6/Extension | Hacked Fabricated ------------ Angular Momentum Engine | x2 | -7/Factory | Preloaded Repaired ---------- Hrd. Heavy Armor Plating | 62% | -8/Materials Studied --------- Carbon-fiber Leg | -6/Factory | Hacked Flexi-carbon Leg | -6/Factory | Hacked Hyp. Gauss Rifle | -6/Factory | Hacked Alien Tech Used ----------------- None Achievements -------------- Bullet Installation Construction Begets Destruction Deadly Precision Deductive Reasoning I Like You, Cogmind Some Acronyms Are Better Than Others Challenges ------------ None Game ------ Seed ArcRemoteCore Manual? 0 Play Time 02:26:36 Cumulative 740.1 hours Start 2025.10.30 @ 19:14:13 End 2025.10.30 @ 21:37:21 Sessions 1 Manual Loads 0 Difficulty Rogue Special Mode None Game No. 464 Rogue 464 Adventurer 0 Explorer 0 Win Type - Total 10 Types 7/0/1/1/1/0/0/0/0/0 Lore% 79 Gallery% 78 Achievement% 55 Wizard Run 0 Options --------- Layout 0 ASCII 0 Keyboard 0 Movement Mouse Keybinds 1 Fullscreen 2 Font 24/Smallcaps Map View 76x50 Zoom Use 0% Tactical HUD 1 Map Filters NONE Filters NONE Steam 1 RUN: 9d068ed9-5c58-40fa-a184-d285f7262f0e